[Event "Titled Tuesday Blitz November 15 Late 2022"]
[White "Marcolino, Daniel Mattos"]
[Black "Bernat, David"]
[WhiteFideId "2106841"]
[BlackFideId "2099225"]
[WhiteElo "2095"]
[BlackElo "2339"]
[Result "0-1"]
[Round "04"]
[TimeControl "180+1"]
[Date "2022.11.16"]
[WhiteClock "0:00:07"]
[BlackClock "0:00:18"]

1. d4 {[%clk 0:03:00]}  d5 {[%clk 0:02:16]} 2. Nf3 {[%clk 0:03:00]}  Nf6 {[%clk 0:02:16]} 3. g3 {[%clk 0:03:00]}  c5 {[%clk 0:02:16]} 4. Bg2 {[%clk 0:02:59]}  Nc6 {[%clk 0:02:16]} 5. O-O {[%clk 0:02:59]}  cxd4 {[%clk 0:02:14]} 6. Nxd4 {[%clk 0:02:58]}  e6 {[%clk 0:02:13]} 7. c4 {[%clk 0:02:54]}  Be7 {[%clk 0:02:12]} 8. Nc3 {[%clk 0:02:50]}  O-O {[%clk 0:02:10]} 9. cxd5 {[%clk 0:02:49]}  Nxd5 {[%clk 0:02:10]} 10. Nxd5 {[%clk 0:02:46]}  exd5 {[%clk 0:02:11]} 11. Be3 {[%clk 0:02:27]}  Bf6 {[%clk 0:02:09]} 12. Rc1 {[%clk 0:02:26]}  Be6 {[%clk 0:01:54]} 13. Nxc6 {[%clk 0:02:06]}  bxc6 {[%clk 0:01:55]} 14. Bd4 {[%clk 0:02:07]}  Bxd4 {[%clk 0:01:42]} 15. Qxd4 {[%clk 0:02:08]}  Qb6 {[%clk 0:01:34]} 16. Rc5 {[%clk 0:01:57]}  Rab8 {[%clk 0:01:31]} 17. b3 {[%clk 0:01:56]}  Rfe8 {[%clk 0:01:29]} 18. Rfc1 {[%clk 0:01:54]}  Bd7 {[%clk 0:01:29]} 19. e3 {[%clk 0:01:54]}  Qb4 {[%clk 0:01:26]} 20. Qxb4 {[%clk 0:01:49]}  Rxb4 {[%clk 0:01:27]} 21. Ra5 {[%clk 0:01:49]}  Rb7 {[%clk 0:01:13]} 22. Rcc5 {[%clk 0:01:48]}  g6 {[%clk 0:01:03]} 23. h4 {[%clk 0:01:39]}  h5 {[%clk 0:01:02]} 24. Ra6 {[%clk 0:01:28]}  Rc8 {[%clk 0:00:53]} 25. Kh2 {[%clk 0:01:19]}  Kf8 {[%clk 0:00:52]} 26. Bh3 {[%clk 0:01:19]}  Ke7 {[%clk 0:00:52]} 27. Bxd7 {[%clk 0:01:04]}  Kxd7 {[%clk 0:00:53]} 28. Ra4 {[%clk 0:00:58]}  Kd6 {[%clk 0:00:52]} 29. Rca5 {[%clk 0:00:57]}  Rcc7 {[%clk 0:00:51]} 30. Kg2 {[%clk 0:00:46]}  c5 {[%clk 0:00:51]} 31. Ra6+ {[%clk 0:00:44]}  Rc6 {[%clk 0:00:42]} 32. Rxa7 {[%clk 0:00:35]}  Rxa7 {[%clk 0:00:42]} 33. Rxa7 {[%clk 0:00:35]}  c4 {[%clk 0:00:42]} 34. bxc4 {[%clk 0:00:34]}  dxc4 {[%clk 0:00:43]} 35. Rb7 {[%clk 0:00:29]}  c3 {[%clk 0:00:39]} 36. Rb1 {[%clk 0:00:29]}  Kc5 {[%clk 0:00:35]} 37. Kf3 {[%clk 0:00:27]}  c2 {[%clk 0:00:17]} 38. Rc1 {[%clk 0:00:27]}  Kb4 {[%clk 0:00:17]} 39. Ke2 {[%clk 0:00:27]}  Kc3 {[%clk 0:00:18]} 40. f3 {[%clk 0:00:10]}  Kb2 {[%clk 0:00:18]} 41. Rf1 {[%clk 0:00:07]}  c1=Q {[%clk 0:00:17]} 42. Rxc1 {[%clk 0:00:07]}  Rxc1 {[%clk 0:00:18]} 43. g4 {[%clk 0:00:08]}  Kxa2 {[%clk 0:00:18]} 44. gxh5 {[%clk 0:00:08]}  gxh5 {[%clk 0:00:18]} 45. f4 {[%clk 0:00:07]}  Rh1 {[%clk 0:00:18]} 0-1


[Site "https://www.chess.com"]

[Event "Titled Tuesday Blitz November 15 Late 2022"]
[White "Martinez Alcantara, Jose Eduardo"]
[Black "Urazayev, Arystanbek"]
[WhiteFideId "3805662"]
[BlackFideId "13709810"]
[WhiteElo "2705"]
[BlackElo "2441"]
[Result "0-1"]
[Round "04"]
[TimeControl "180+1"]
[Date "2022.11.15"]
[WhiteClock "0:00:21"]
[BlackClock "0:00:17"]

1. e4 {[%clk 0:03:00]}  c6 {[%clk 0:02:59]} 2. Nf3 {[%clk 0:03:01]}  d5 {[%clk 0:03:00]} 3. d3 {[%clk 0:03:02]}  dxe4 {[%clk 0:03:00]} 4. dxe4 {[%clk 0:03:03]}  Qxd1+ {[%clk 0:03:01]} 5. Kxd1 {[%clk 0:03:04]}  Nf6 {[%clk 0:03:01]} 6. Nfd2 {[%clk 0:03:03]}  g5 {[%clk 0:03:01]} 7. Nc3 {[%clk 0:03:03]}  h5 {[%clk 0:03:02]} 8. Nb3 {[%clk 0:03:02]}  g4 {[%clk 0:03:02]} 9. Bd3 {[%clk 0:03:02]}  Bh6 {[%clk 0:03:02]} 10. Ke2 {[%clk 0:02:58]}  Nbd7 {[%clk 0:02:59]} 11. Bxh6 {[%clk 0:02:57]}  Rxh6 {[%clk 0:03:00]} 12. Ke3 {[%clk 0:02:57]}  Ne5 {[%clk 0:02:58]} 13. f4 {[%clk 0:02:56]}  gxf3 {[%clk 0:02:58]} 14. gxf3 {[%clk 0:02:57]}  Be6 {[%clk 0:02:52]} 15. Nd4 {[%clk 0:02:45]}  O-O-O {[%clk 0:02:49]} 16. Be2 {[%clk 0:02:44]}  Rg6 {[%clk 0:02:41]} 17. Rhg1 {[%clk 0:02:43]}  Rdg8 {[%clk 0:02:11]} 18. Rxg6 {[%clk 0:02:43]}  Rxg6 {[%clk 0:02:11]} 19. Nxe6 {[%clk 0:02:42]}  fxe6 {[%clk 0:02:12]} 20. Kf2 {[%clk 0:02:37]}  h4 {[%clk 0:02:07]} 21. Rg1 {[%clk 0:01:54]}  Rxg1 {[%clk 0:02:07]} 22. Kxg1 {[%clk 0:01:55]}  Nh5 {[%clk 0:02:08]} 23. Kf2 {[%clk 0:01:54]}  Nf4 {[%clk 0:02:07]} 24. Bf1 {[%clk 0:01:53]}  Neg6 {[%clk 0:02:03]} 25. Ke3 {[%clk 0:01:50]}  e5 {[%clk 0:02:03]} 26. Nd1 {[%clk 0:01:42]}  Kc7 {[%clk 0:01:59]} 27. Nf2 {[%clk 0:01:43]}  b5 {[%clk 0:01:56]} 28. c4 {[%clk 0:01:33]}  a6 {[%clk 0:01:54]} 29. Ng4 {[%clk 0:01:23]}  Kd6 {[%clk 0:01:30]} 30. b4 {[%clk 0:01:22]}  Ne6 {[%clk 0:01:13]} 31. c5+ {[%clk 0:01:12]}  Kc7 {[%clk 0:01:12]} 32. Nh6 {[%clk 0:00:53]}  Nd4 {[%clk 0:01:10]} 33. Nf7 {[%clk 0:00:46]}  Kd7 {[%clk 0:00:54]} 34. Bh3+ {[%clk 0:00:27]}  Ke8 {[%clk 0:00:55]} 35. Ng5 {[%clk 0:00:25]}  Nf4 {[%clk 0:00:37]} 36. Bg4 {[%clk 0:00:26]}  Nc2+ {[%clk 0:00:30]} 37. Kd2 {[%clk 0:00:26]}  Nxb4 {[%clk 0:00:31]} 38. a3 {[%clk 0:00:27]}  Nbd3 {[%clk 0:00:32]} 39. Kc3 {[%clk 0:00:22]}  Nxc5 {[%clk 0:00:32]} 40. Kb4 {[%clk 0:00:23]}  Nb7 {[%clk 0:00:30]} 41. Bc8 {[%clk 0:00:23]}  a5+ {[%clk 0:00:30]} 42. Kc3 {[%clk 0:00:24]}  Nc5 {[%clk 0:00:30]} 43. Bh3 {[%clk 0:00:24]}  Nxh3 {[%clk 0:00:28]} 44. Nxh3 {[%clk 0:00:25]}  Ne6 {[%clk 0:00:28]} 45. Nf2 {[%clk 0:00:26]}  Nd4 {[%clk 0:00:28]} 46. Ng4 {[%clk 0:00:25]}  Nxf3 {[%clk 0:00:28]} 47. Kd3 {[%clk 0:00:26]}  a4 {[%clk 0:00:17]} 48. Ke3 {[%clk 0:00:20]}  Nd4 {[%clk 0:00:16]} 49. Kd3 {[%clk 0:00:18]}  Nf3 {[%clk 0:00:14]} 50. Ke3 {[%clk 0:00:19]}  b4 {[%clk 0:00:15]} 51. Kxf3 {[%clk 0:00:17]}  b3 {[%clk 0:00:13]} 52. Nxe5 {[%clk 0:00:17]}  b2 {[%clk 0:00:13]} 53. Kf4 {[%clk 0:00:16]}  b1=Q {[%clk 0:00:14]} 54. Nf3 {[%clk 0:00:17]}  Qc1+ {[%clk 0:00:14]} 55. Kg4 {[%clk 0:00:17]}  Qxa3 {[%clk 0:00:15]} 56. Nxh4 {[%clk 0:00:18]}  Qb4 {[%clk 0:00:16]} 57. Kg3 {[%clk 0:00:18]}  a3 {[%clk 0:00:15]} 58. Nf5 {[%clk 0:00:18]}  a2 {[%clk 0:00:16]} 59. Kf4 {[%clk 0:00:18]}  a1=Q {[%clk 0:00:16]} 60. Ng7+ {[%clk 0:00:19]}  Kf7 {[%clk 0:00:16]} 61. Nf5 {[%clk 0:00:20]}  Qc1+ {[%clk 0:00:16]} 62. Kg4 {[%clk 0:00:20]}  Qxe4+ {[%clk 0:00:16]} 63. Kg3 {[%clk 0:00:20]}  Qxf5 {[%clk 0:00:17]} 64. Kg2 {[%clk 0:00:21]}  Qcf4 {[%clk 0:00:17]} 0-1


[Site "https://www.chess.com"]

[Event "Titled Tuesday Blitz November 15 Late 2022"]
[White "Martinez Reyes, Pedro Ramon"]
[Black "Sariego Figueredo, Wilfredo"]
[WhiteFideId "3901807"]
[BlackFideId "3500080"]
[WhiteElo "2354"]
[BlackElo "2309"]
[Result "1-0"]
[Round "04"]
[TimeControl "180+1"]
[Date "2022.11.16"]
[WhiteClock "0:00:21"]
[BlackClock "0:00:03"]

1. Nf3 {[%clk 0:03:00]}  c5 {[%clk 0:02:59]} 2. b3 {[%clk 0:03:01]}  d5 {[%clk 0:02:58]} 3. Bb2 {[%clk 0:03:02]}  Nf6 {[%clk 0:02:58]} 4. e3 {[%clk 0:03:03]}  e6 {[%clk 0:02:56]} 5. c4 {[%clk 0:02:58]}  Be7 {[%clk 0:02:54]} 6. cxd5 {[%clk 0:02:58]}  exd5 {[%clk 0:02:55]} 7. d4 {[%clk 0:02:52]}  cxd4 {[%clk 0:02:48]} 8. Nxd4 {[%clk 0:02:51]}  O-O {[%clk 0:02:46]} 9. Nd2 {[%clk 0:02:51]}  Nc6 {[%clk 0:02:44]} 10. Be2 {[%clk 0:02:48]}  Ne4 {[%clk 0:02:35]} 11. Nxe4 {[%clk 0:02:47]}  dxe4 {[%clk 0:02:36]} 12. Nxc6 {[%clk 0:02:48]}  bxc6 {[%clk 0:02:33]} 13. Qxd8 {[%clk 0:02:48]}  Rxd8 {[%clk 0:02:33]} 14. Rc1 {[%clk 0:02:49]}  Bb4+ {[%clk 0:02:31]} 15. Bc3 {[%clk 0:02:49]}  c5 {[%clk 0:02:26]} 16. Bxb4 {[%clk 0:02:33]}  cxb4 {[%clk 0:02:27]} 17. Rc4 {[%clk 0:02:33]}  a5 {[%clk 0:02:27]} 18. Rxe4 {[%clk 0:02:18]}  Bb7 {[%clk 0:02:27]} 19. Re7 {[%clk 0:02:19]}  Bxg2 {[%clk 0:02:25]} 20. Rg1 {[%clk 0:02:19]}  Bd5 {[%clk 0:02:14]} 21. e4 {[%clk 0:02:07]}  Be6 {[%clk 0:02:11]} 22. f4 {[%clk 0:02:07]}  Kf8 {[%clk 0:02:11]} 23. Rb7 {[%clk 0:02:04]}  g6 {[%clk 0:01:58]} 24. f5 {[%clk 0:01:46]}  gxf5 {[%clk 0:01:55]} 25. exf5 {[%clk 0:01:47]}  Bxf5 {[%clk 0:01:55]} 26. Rf1 {[%clk 0:01:48]}  Bg6 {[%clk 0:01:55]} 27. Bc4 {[%clk 0:01:48]}  Re8+ {[%clk 0:01:55]} 28. Kd2 {[%clk 0:01:43]}  Rad8+ {[%clk 0:01:54]} 29. Kc1 {[%clk 0:01:43]}  Rc8 {[%clk 0:01:41]} 30. Ra7 {[%clk 0:01:37]}  Rc5 {[%clk 0:01:40]} 31. Kb2 {[%clk 0:01:30]}  Re7 {[%clk 0:01:34]} 32. Ra8+ {[%clk 0:01:27]}  Kg7 {[%clk 0:01:34]} 33. a4 {[%clk 0:01:25]}  Rce5 {[%clk 0:01:24]} 34. Rf2 {[%clk 0:01:24]}  Rf5 {[%clk 0:01:17]} 35. Rxf5 {[%clk 0:01:23]}  Bxf5 {[%clk 0:01:18]} 36. Rxa5 {[%clk 0:01:23]}  Be6 {[%clk 0:01:15]} 37. Bd3 {[%clk 0:01:05]}  Rd7 {[%clk 0:01:12]} 38. Bc2 {[%clk 0:01:05]}  Rd2 {[%clk 0:01:08]} 39. h4 {[%clk 0:01:05]}  Rh2 {[%clk 0:01:03]} 40. Rh5 {[%clk 0:01:00]}  f5 {[%clk 0:00:57]} 41. a5 {[%clk 0:00:57]}  f4 {[%clk 0:00:45]} 42. a6 {[%clk 0:00:47]}  f3 {[%clk 0:00:42]} 43. a7 {[%clk 0:00:48]}  Rxc2+ {[%clk 0:00:26]} 44. Kxc2 {[%clk 0:00:47]}  f2 {[%clk 0:00:27]} 45. a8=Q {[%clk 0:00:35]}  f1=Q {[%clk 0:00:26]} 46. Qa7+ {[%clk 0:00:32]}  Bf7 {[%clk 0:00:22]} 47. Rg5+ {[%clk 0:00:29]}  Kf6 {[%clk 0:00:14]} 48. Qd4+ {[%clk 0:00:27]}  Ke7 {[%clk 0:00:10]} 49. Qxb4+ {[%clk 0:00:27]}  Kf6 {[%clk 0:00:03]} 50. Qd6+ {[%clk 0:00:21]} 1-0


[Site "https://www.chess.com"]

[Event "Titled Tuesday Blitz November 15 Late 2022"]
[White "Megalios, Konstantinos"]
[Black "Quispe Santacruz, Javier"]
[WhiteFideId "4238044"]
[BlackFideId "3800920"]
[WhiteElo "2277"]
[BlackElo "1930"]
[Result "1-0"]
[Round "04"]
[TimeControl "180+1"]
[Date "2022.11.16"]
[WhiteClock "0:00:09"]
[BlackClock "0:00:12"]

1. e4 {[%clk 0:03:00]}  c5 {[%clk 0:02:59]} 2. Nf3 {[%clk 0:03:01]}  d6 {[%clk 0:02:58]} 3. d4 {[%clk 0:03:02]}  cxd4 {[%clk 0:02:59]} 4. Nxd4 {[%clk 0:03:03]}  Nf6 {[%clk 0:02:59]} 5. Nc3 {[%clk 0:03:03]}  g6 {[%clk 0:02:58]} 6. Be3 {[%clk 0:03:02]}  Bg7 {[%clk 0:02:58]} 7. f3 {[%clk 0:03:03]}  O-O {[%clk 0:02:58]} 8. Qd2 {[%clk 0:03:03]}  Nc6 {[%clk 0:02:59]} 9. O-O-O {[%clk 0:03:04]}  d5 {[%clk 0:02:59]} 10. exd5 {[%clk 0:03:03]}  Nxd5 {[%clk 0:02:56]} 11. Nxc6 {[%clk 0:03:04]}  bxc6 {[%clk 0:02:56]} 12. Bd4 {[%clk 0:03:04]}  Bxd4 {[%clk 0:02:52]} 13. Qxd4 {[%clk 0:03:05]}  Qb6 {[%clk 0:02:53]} 14. Na4 {[%clk 0:03:02]}  Qa5 {[%clk 0:02:51]} 15. Kb1 {[%clk 0:02:38]}  e5 {[%clk 0:02:50]} 16. Qh4 {[%clk 0:02:12]}  Ne3 {[%clk 0:02:43]} 17. Qe1 {[%clk 0:01:05]}  Qxa4 {[%clk 0:02:28]} 18. Qxe3 {[%clk 0:01:04]}  Be6 {[%clk 0:02:27]} 19. b3 {[%clk 0:00:58]}  Qa5 {[%clk 0:02:13]} 20. Bd3 {[%clk 0:00:54]}  Rab8 {[%clk 0:02:10]} 21. Rhe1 {[%clk 0:00:54]}  f6 {[%clk 0:02:09]} 22. f4 {[%clk 0:00:50]}  Bg4 {[%clk 0:02:09]} 23. Bc4+ {[%clk 0:00:50]}  Kg7 {[%clk 0:02:02]} 24. Rd6 {[%clk 0:00:48]}  Qb4 {[%clk 0:01:56]} 25. Rxc6 {[%clk 0:00:28]}  Rfe8 {[%clk 0:01:50]} 26. Rc7+ {[%clk 0:00:26]}  Kh8 {[%clk 0:01:44]} 27. h3 {[%clk 0:00:26]}  Bf5 {[%clk 0:01:38]} 28. g4 {[%clk 0:00:25]}  Bc8 {[%clk 0:01:19]} 29. f5 {[%clk 0:00:24]}  gxf5 {[%clk 0:01:09]} 30. Rd1 {[%clk 0:00:24]}  f4 {[%clk 0:01:06]} 31. Qxa7 {[%clk 0:00:24]}  Rb7 {[%clk 0:00:46]} 32. Rxb7 {[%clk 0:00:24]}  Bxb7 {[%clk 0:00:46]} 33. Rd7 {[%clk 0:00:21]}  Be4 {[%clk 0:00:35]} 34. Qa6 {[%clk 0:00:17]}  Rf8 {[%clk 0:00:28]} 35. Rd8 {[%clk 0:00:15]}  Qe7 {[%clk 0:00:16]} 36. Rxf8+ {[%clk 0:00:13]}  Qxf8 {[%clk 0:00:17]} 37. Qe6 {[%clk 0:00:12]}  f3 {[%clk 0:00:16]} 38. g5 {[%clk 0:00:11]}  f2 {[%clk 0:00:15]} 39. gxf6 {[%clk 0:00:10]}  Bg2 {[%clk 0:00:12]} 40. Qxe5 {[%clk 0:00:09]}  f1=Q+ {[%clk 0:00:11]} 41. Bxf1 {[%clk 0:00:09]}  Bxf1 {[%clk 0:00:12]} 42. f7+ {[%clk 0:00:09]}  Qg7 {[%clk 0:00:12]} 43. Qe8+ {[%clk 0:00:09]} 1-0


[Site "https://www.chess.com"]

[Event "Titled Tuesday Blitz November 15 Late 2022"]
[White "Melkumyan, Hrant"]
[Black "Korchmar, Vasiliy"]
[WhiteFideId "13302485"]
[BlackFideId "24131750"]
[WhiteElo "2604"]
[BlackElo "2370"]
[Result "1-0"]
[Round "04"]
[TimeControl "180+1"]
[Date "2022.11.15"]
[WhiteClock "0:00:07"]
[BlackClock "0:00:01"]

1. d4 {[%clk 0:03:00]}  d5 {[%clk 0:03:00]} 2. c4 {[%clk 0:03:00]}  c6 {[%clk 0:03:00]} 3. Nc3 {[%clk 0:02:55]}  Nf6 {[%clk 0:03:00]} 4. e3 {[%clk 0:02:55]}  e6 {[%clk 0:03:00]} 5. Nf3 {[%clk 0:02:55]}  Nbd7 {[%clk 0:03:00]} 6. Bd3 {[%clk 0:02:52]}  dxc4 {[%clk 0:02:59]} 7. Bxc4 {[%clk 0:02:53]}  b5 {[%clk 0:03:00]} 8. Bd3 {[%clk 0:02:53]}  b4 {[%clk 0:03:00]} 9. Ne4 {[%clk 0:02:50]}  Nxe4 {[%clk 0:03:01]} 10. Bxe4 {[%clk 0:02:51]}  Bb7 {[%clk 0:03:01]} 11. Nd2 {[%clk 0:02:47]}  Be7 {[%clk 0:03:00]} 12. O-O {[%clk 0:02:47]}  O-O {[%clk 0:02:59]} 13. Nc4 {[%clk 0:02:43]}  Qc7 {[%clk 0:02:30]} 14. b3 {[%clk 0:02:28]}  c5 {[%clk 0:02:23]} 15. d5 {[%clk 0:02:21]}  exd5 {[%clk 0:02:14]} 16. Bxd5 {[%clk 0:02:22]}  Bf6 {[%clk 0:02:04]} 17. Rb1 {[%clk 0:02:13]}  Bxd5 {[%clk 0:01:52]} 18. Qxd5 {[%clk 0:02:14]}  Nb6 {[%clk 0:01:53]} 19. Qe4 {[%clk 0:02:13]}  Rfe8 {[%clk 0:01:48]} 20. Qg4 {[%clk 0:02:12]}  Nd5 {[%clk 0:01:41]} 21. Bd2 {[%clk 0:02:10]}  a5 {[%clk 0:01:37]} 22. a4 {[%clk 0:02:03]}  Rad8 {[%clk 0:01:28]} 23. g3 {[%clk 0:01:53]}  g6 {[%clk 0:01:27]} 24. Qf3 {[%clk 0:01:51]}  Bg7 {[%clk 0:01:17]} 25. Rbc1 {[%clk 0:01:46]}  h5 {[%clk 0:01:16]} 26. Rc2 {[%clk 0:01:40]}  Nc3 {[%clk 0:01:11]} 27. Rfc1 {[%clk 0:01:30]}  Rd3 {[%clk 0:00:49]} 28. Kg2 {[%clk 0:01:23]}  Red8 {[%clk 0:00:46]} 29. Be1 {[%clk 0:01:20]}  h4 {[%clk 0:00:42]} 30. gxh4 {[%clk 0:01:15]}  R8d5 {[%clk 0:00:34]} 31. Kh1 {[%clk 0:01:06]}  Rf5 {[%clk 0:00:29]} 32. Qg2 {[%clk 0:01:00]}  Rh5 {[%clk 0:00:22]} 33. Bxc3 {[%clk 0:00:57]}  bxc3 {[%clk 0:00:21]} 34. Qe4 {[%clk 0:00:55]}  Qd8 {[%clk 0:00:17]} 35. Kg2 {[%clk 0:00:32]}  Rxh4 {[%clk 0:00:17]} 36. Qf3 {[%clk 0:00:33]}  Qg5+ {[%clk 0:00:12]} 37. Kf1 {[%clk 0:00:30]}  Rxh2 {[%clk 0:00:09]} 38. Ke2 {[%clk 0:00:31]}  Rd8 {[%clk 0:00:06]} 39. Nxa5 {[%clk 0:00:31]}  Qe7 {[%clk 0:00:02]} 40. Nc4 {[%clk 0:00:31]}  Qe6 {[%clk 0:00:02]} 41. a5 {[%clk 0:00:29]}  Rh3 {[%clk 0:00:01]} 42. Qg2 {[%clk 0:00:27]}  Rh4 {[%clk 0:00:01]} 43. Qf3 {[%clk 0:00:14]}  Rxc4 {[%clk 0:00:01]} 44. bxc4 {[%clk 0:00:14]}  Qxc4+ {[%clk 0:00:02]} 45. Ke1 {[%clk 0:00:15]}  Qb5 {[%clk 0:00:02]} 46. Ra1 {[%clk 0:00:07]}  Qb3 {[%clk 0:00:01]} 47. Qe2 {[%clk 0:00:07]} 1-0


[Site "https://www.chess.com"]

[Event "Titled Tuesday Blitz November 15 Late 2022"]
[White "Mgeladze, Tamaz"]
[Black "Aguilar, Juan"]
[WhiteFideId "13601202"]
[BlackFideId "3800091"]
[WhiteElo "2288"]
[BlackElo "2441"]
[Result "1-0"]
[Round "04"]
[TimeControl "180+1"]
[Date "2022.11.16"]
[WhiteClock "0:00:29"]
[BlackClock "0:00:18"]

1. c4 {[%clk 0:03:00]}  e5 {[%clk 0:02:59]} 2. g3 {[%clk 0:02:59]}  Nf6 {[%clk 0:02:58]} 3. Bg2 {[%clk 0:02:58]}  c6 {[%clk 0:02:58]} 4. Nf3 {[%clk 0:02:58]}  e4 {[%clk 0:02:55]} 5. Nd4 {[%clk 0:02:58]}  d5 {[%clk 0:02:54]} 6. cxd5 {[%clk 0:02:59]}  Qb6 {[%clk 0:02:54]} 7. Nb3 {[%clk 0:02:58]}  cxd5 {[%clk 0:02:54]} 8. d3 {[%clk 0:02:58]}  Bb4+ {[%clk 0:02:50]} 9. Bd2 {[%clk 0:02:55]}  O-O {[%clk 0:02:49]} 10. O-O {[%clk 0:02:54]}  exd3 {[%clk 0:02:48]} 11. exd3 {[%clk 0:02:47]}  Bg4 {[%clk 0:02:48]} 12. Bf3 {[%clk 0:02:41]}  Bxf3 {[%clk 0:02:45]} 13. Qxf3 {[%clk 0:02:42]}  Nbd7 {[%clk 0:02:42]} 14. Be3 {[%clk 0:02:35]}  Qa6 {[%clk 0:02:31]} 15. d4 {[%clk 0:02:33]}  Rac8 {[%clk 0:02:26]} 16. a3 {[%clk 0:02:30]}  Bd6 {[%clk 0:02:22]} 17. Nc3 {[%clk 0:02:27]}  Qb6 {[%clk 0:02:06]} 18. Nc5 {[%clk 0:01:55]}  Nxc5 {[%clk 0:02:02]} 19. dxc5 {[%clk 0:01:56]}  Qxb2 {[%clk 0:01:53]} 20. Bd4 {[%clk 0:01:17]}  Be7 {[%clk 0:01:20]} 21. Rab1 {[%clk 0:01:16]}  Qc2 {[%clk 0:01:17]} 22. Rfc1 {[%clk 0:01:10]}  Qg6 {[%clk 0:01:07]} 23. Bxf6 {[%clk 0:01:07]}  Bxf6 {[%clk 0:01:07]} 24. Nxd5 {[%clk 0:01:07]}  Rfd8 {[%clk 0:00:36]} 25. Nxf6+ {[%clk 0:00:55]}  gxf6 {[%clk 0:00:37]} 26. Rxb7 {[%clk 0:00:53]}  Rd3 {[%clk 0:00:37]} 27. Qf4 {[%clk 0:00:43]}  Rxa3 {[%clk 0:00:35]} 28. c6 {[%clk 0:00:40]}  Kg7 {[%clk 0:00:20]} 29. c7 {[%clk 0:00:35]}  Qd3 {[%clk 0:00:18]} 30. Qg4+ {[%clk 0:00:29]} 1-0


[Site "https://www.chess.com"]

[Event "Titled Tuesday Blitz November 15 Late 2022"]
[White "Mickiewicz, Piotr"]
[Black "Sabuk, Piotr"]
[WhiteFideId "1114891"]
[BlackFideId "1137565"]
[WhiteElo "2246"]
[BlackElo "2326"]
[Result "0-1"]
[Round "04"]
[TimeControl "180+1"]
[Date "2022.11.16"]
[WhiteClock "0:00:09"]
[BlackClock "0:00:45"]

1. e4 {[%clk 0:03:00]}  e5 {[%clk 0:02:58]} 2. Nf3 {[%clk 0:03:00]}  Nc6 {[%clk 0:02:59]} 3. Bc4 {[%clk 0:03:00]}  Nf6 {[%clk 0:02:57]} 4. d3 {[%clk 0:03:00]}  Be7 {[%clk 0:02:55]} 5. a4 {[%clk 0:02:58]}  O-O {[%clk 0:02:53]} 6. O-O {[%clk 0:02:57]}  a5 {[%clk 0:02:45]} 7. Nc3 {[%clk 0:02:53]}  d6 {[%clk 0:02:43]} 8. h3 {[%clk 0:02:52]}  Be6 {[%clk 0:02:43]} 9. Be3 {[%clk 0:02:40]}  d5 {[%clk 0:02:38]} 10. exd5 {[%clk 0:02:36]}  Nxd5 {[%clk 0:02:38]} 11. Nxd5 {[%clk 0:02:26]}  Bxd5 {[%clk 0:02:38]} 12. Re1 {[%clk 0:02:18]}  Bxc4 {[%clk 0:02:31]} 13. dxc4 {[%clk 0:02:19]}  f6 {[%clk 0:02:21]} 14. c5 {[%clk 0:02:14]}  Qxd1 {[%clk 0:02:20]} 15. Raxd1 {[%clk 0:02:12]}  Rfd8 {[%clk 0:02:20]} 16. c3 {[%clk 0:02:08]}  Kf7 {[%clk 0:02:19]} 17. Nd2 {[%clk 0:01:58]}  Rd5 {[%clk 0:02:11]} 18. Nb3 {[%clk 0:01:48]}  Rad8 {[%clk 0:02:09]} 19. Rxd5 {[%clk 0:01:38]}  Rxd5 {[%clk 0:02:10]} 20. f3 {[%clk 0:01:35]}  f5 {[%clk 0:02:00]} 21. Kf1 {[%clk 0:01:36]}  Bh4 {[%clk 0:01:56]} 22. Rc1 {[%clk 0:01:27]}  Kf6 {[%clk 0:01:49]} 23. Ke2 {[%clk 0:01:27]}  Bg5 {[%clk 0:01:47]} 24. h4 {[%clk 0:01:13]}  Bxh4 {[%clk 0:01:20]} 25. Rh1 {[%clk 0:01:11]}  g5 {[%clk 0:01:20]} 26. g3 {[%clk 0:01:06]}  Bxg3 {[%clk 0:01:20]} 27. Rxh7 {[%clk 0:01:05]}  g4 {[%clk 0:01:10]} 28. fxg4 {[%clk 0:00:51]}  f4 {[%clk 0:01:10]} 29. Bf2 {[%clk 0:00:18]}  Bxf2 {[%clk 0:01:10]} 30. Kxf2 {[%clk 0:00:19]}  e4 {[%clk 0:01:04]} 31. Rxc7 {[%clk 0:00:13]}  Ne5 {[%clk 0:01:04]} 32. Rxb7 {[%clk 0:00:11]}  Nxg4+ {[%clk 0:01:03]} 33. Kg2 {[%clk 0:00:11]}  f3+ {[%clk 0:00:58]} 34. Kg3 {[%clk 0:00:12]}  f2 {[%clk 0:00:57]} 35. Kg2 {[%clk 0:00:11]}  Rd1 {[%clk 0:00:50]} 36. Rb6+ {[%clk 0:00:09]}  Kg5 {[%clk 0:00:45]} 0-1


[Site "https://www.chess.com"]

[Event "Titled Tuesday Blitz November 15 Late 2022"]
[White "Mikaelyan, Arman"]
[Black "Yurovskykh, Oleksandr"]
[WhiteFideId "13304852"]
[BlackFideId "14134020"]
[WhiteElo "2456"]
[BlackElo "2265"]
[Result "1-0"]
[Round "04"]
[TimeControl "180+1"]
[Date "2022.11.16"]
[WhiteClock "0:00:44"]
[BlackClock "0:00:01"]

1. d4 {[%clk 0:03:00]}  d5 {[%clk 0:02:58]} 2. Bf4 {[%clk 0:03:00]}  c5 {[%clk 0:02:57]} 3. e3 {[%clk 0:03:00]}  Nc6 {[%clk 0:02:57]} 4. Nf3 {[%clk 0:02:58]}  Bg4 {[%clk 0:02:57]} 5. Nbd2 {[%clk 0:02:58]}  e6 {[%clk 0:02:52]} 6. c3 {[%clk 0:02:58]}  Qb6 {[%clk 0:02:42]} 7. Qb3 {[%clk 0:02:54]}  c4 {[%clk 0:02:42]} 8. Qc2 {[%clk 0:02:39]}  Nf6 {[%clk 0:02:37]} 9. b3 {[%clk 0:02:35]}  Bf5 {[%clk 0:02:34]} 10. Qd1 {[%clk 0:02:23]}  Ba3 {[%clk 0:02:19]} 11. Nh4 {[%clk 0:02:04]}  Bg4 {[%clk 0:01:52]} 12. f3 {[%clk 0:02:03]}  Bh5 {[%clk 0:01:52]} 13. bxc4 {[%clk 0:02:02]}  Qb2 {[%clk 0:01:34]} 14. Rb1 {[%clk 0:01:54]}  Qxc3 {[%clk 0:01:31]} 15. Qb3 {[%clk 0:01:50]}  Qxb3 {[%clk 0:01:15]} 16. Rxb3 {[%clk 0:01:51]}  Bb4 {[%clk 0:01:15]} 17. g4 {[%clk 0:01:51]}  Bxg4 {[%clk 0:00:40]} 18. fxg4 {[%clk 0:01:46]}  Ne4 {[%clk 0:00:40]} 19. Nf3 {[%clk 0:01:39]}  O-O {[%clk 0:00:07]} 20. a3 {[%clk 0:01:35]}  Ba5 {[%clk 0:00:06]} 21. Bd3 {[%clk 0:01:34]}  Nxd2 {[%clk 0:00:06]} 22. Nxd2 {[%clk 0:01:34]}  dxc4 {[%clk 0:00:07]} 23. Bxc4 {[%clk 0:01:33]}  Rfc8 {[%clk 0:00:08]} 24. Ke2 {[%clk 0:01:16]}  Bxd2 {[%clk 0:00:07]} 25. Kxd2 {[%clk 0:01:17]}  Na5 {[%clk 0:00:07]} 26. Kd3 {[%clk 0:00:58]}  Nxc4 {[%clk 0:00:06]} 27. Rxb7 {[%clk 0:00:58]}  Nb6 {[%clk 0:00:06]} 28. e4 {[%clk 0:00:52]}  Nc4 {[%clk 0:00:05]} 29. Rc1 {[%clk 0:00:47]}  Nxa3 {[%clk 0:00:04]} 30. Rc5 {[%clk 0:00:48]}  Rd8 {[%clk 0:00:02]} 31. Ra5 {[%clk 0:00:44]}  Rac8 {[%clk 0:00:01]} 32. Rxa3 {[%clk 0:00:44]} 1-0


[Site "https://www.chess.com"]